Workbook

Sheet Income statement
A2: Condensed Income Statement
A3: NOK million | B3: Q1 2018 | C3: Q2 2018 | D3: YTD Q2 2018 | E3: Q3 2018 | F3: YTD Q3 2018 | G3: Q4 2018 | H3: YTD Q4 2018 | I3: Q1 2019 | J3: Q2 2019 | K3: YTD Q2 2019
A4: Operating revenues | B4: 9711 | C4: 10017 | D4: =B4+C4 -> 19728 | E4: 10126 | F4: =D4+E4 -> 29854 | G4: 10983 | H4: =+F4+G4 -> 40837 | I4: 10176 | J4: 10542 | K4: =I4+J4 -> 20718
A5: Operating expenses | B5: -8516 | C5: -8594 | D5: =B5+C5 -> -17110 | E5: -8477 | F5: =D5+E5 -> -25587 | G5: -9259 | H5: =+F5+G5 -> -34846 | I5: -8734 | J5: -9007 | K5: -17741
A6: Depreciation, amortisation and write-downs | B6: -298 | C6: -304 | D6: -602 | E6: -296 | F6: -898 | G6: -316 | H6: -1214 | I6: -422 | J6: -426 | K6: -848
A7: EBIT (adj.) | B7: =SUM(B4:B6) -> 897 | C7: =SUM(C4:C6) -> 1119 | D7: 2016 | E7: =SUM(E4:E6) -> 1353 | F7: 3369 | G7: =SUM(G4:G6) -> 1408 | H7: =SUM(H4:H6) -> 4777 | I7: =SUM(I4:I6) -> 1020 | J7: =SUM(J4:J6) -> 1109 | K7: 2129
A8: Other income and expenses | B8: -27 | C8: -97 | D8: =B8+C8 -> -124 | E8: -62 | F8: =D8+E8 -> -186 | G8: -296 | H8: =+F8+G8 -> -482 | I8: -119 | J8: -39 | K8: -158
A9: Operating profit | B9: =SUM(B7:B8) -> 870 | C9: =SUM(C7:C8) -> 1022 | D9: 1892 | E9: =SUM(E7:E8) -> 1291 | F9: 3183 | G9: =SUM(G7:G8) -> 1112 | H9: =SUM(H7:H8) -> 4295 | I9: =SUM(I7:I8) -> 901 | J9: =SUM(J7:J8) -> 1070 | K9: 1971
A10: Profit from associates and joint ventures | B10: 86 | C10: 105 | D10: =B10+C10 -> 191 | E10: 116 | F10: =D10+E10 -> 307 | G10: -43 | H10: =+F10+G10 -> 264 | I10: 165 | J10: 181 | K10: 346
A11: Interest, net | B11: -50 | C11: -32 | D11: -82 | E11: -40 | F11: -122 | G11: -37 | H11: =+F11+G11 -> -159 | I11: -50 | J11: -53 | K11: -103
A12: Other financial items, net | B12: -20 | C12: -4 | D12: -24 | E12: -3 | F12: -27 | G12: -15 | H12: -42 | I12: -26 | J12: -20 | K12: -46
A13: Profit before taxes | B13: =SUM(B9:B12) -> 886 | C13: =SUM(C9:C12) -> 1091 | D13: =SUM(D9:D12) -> 1977 | E13: =SUM(E9:E12) -> 1364 | F13: =SUM(F9:F12) -> 3341 | G13: =SUM(G9:G12) -> 1017 | H13: =SUM(H9:H12) -> 4358 | I13: =SUM(I9:I12) -> 990 | J13: =SUM(J9:J12) -> 1178 | K13: 2168
A14: Taxes | B14: -176 | C14: -234 | D14: =B14+C14 -> -410 | E14: -323 | F14: =D14+E14 -> -733 | G14: -271 | H14: =+F14+G14 -> -1004 | I14: -230 | J14: -250 | K14: -480
A15: Profit/loss for the period | B15: =SUM(B13:B14) -> 710 | C15: =SUM(C13:C14) -> 857 | D15: =SUM(D13:D14) -> 1567 | E15: =SUM(E13:E14) -> 1041 | F15: =SUM(F13:F14) -> 2608 | G15: =SUM(G13:G14) -> 746 | H15: =SUM(H13:H14) -> 3354 | I15: 760 | J15: =SUM(J13:J14) -> 928 | K15: 1688
A16: Profit/loss attributable to non-controlling interests | B16: 22 | C16: 29 | D16: =B16+C16 -> 51 | E16: 29 | F16: =D16+E16 -> 80 | G16: 2 | H16: =+F16+G16 -> 82 | I16: 19 | J16: 29 | K16: 48
A17: Profit/loss attributable to owners of the parent | B17: =B15-B16 -> 688 | C17: =C15-C16 -> 828 | D17: 1516 | E17: =E15-E16 -> 1012 | F17: 2528 | G17: 744 | H17: =+F17+G17 -> 3272 | I17: =I15-I16 -> 741 | J17: =J15-J16 -> 899 | K17: 1640
A20: Operating revenues
A21: NOK million | B21: Q1 2018 | C21: Q2 2018 | D21: YTD Q2 2018 | E21: Q3 2018 | F21: YTD Q3 2018 | G21: Q4 2018 | H21: YTD Q4 2018 | I21: Q1 2019 | J21: Q2 2019 | K21: YTD Q2 2019
A22: Orkla Foods | B22: 3852 | C22: 3845 | D22: =B22+C22 -> 7697 | E22: 3937 | F22: =D22+E22 -> 11634 | G22: 4366 | H22: =F22+G22 -> 16000 | I22: 3889 | J22: 4070 | K22: =I22+J22 -> 7959
A23: Orkla Confectionery & Snacks | B23: 1453 | C23: 1435 | D23: 2888 | E23: 1518 | F23: =D23+E23 -> 4406 | G23: 1840 | H23: =F23+G23 -> 6246 | I23: 1502 | J23: 1519 | K23: =I23+J23 -> 3021
A24: Orkla Care | B24: 2076 | C24: 2032 | D24: 4108 | E24: 1973 | F24: 6081 | G24: 1994 | H24: 8075 | I24: 2071 | J24: 1948 | K24: 4019
A25: Orkla Food Ingredients | B25: 2182 | C25: 2462 | D25: 4644 | E25: 2432 | F25: 7076 | G25: 2486 | H25: 9562 | I25: 2291 | J25: 2584 | K25: 4875
A26: Eliminations Branded Consumer Goods | B26: -66 | C26: -69 | D26: -135 | E26: -77 | F26: -212 | G26: -79 | H26: -291 | I26: -66 | J26: -70 | K26: -136
A27: Branded Consumer Goods | B27: =SUM(B22:B26) -> 9497 | C27: =SUM(C22:C26) -> 9705 | D27: 19202 | E27: =SUM(E22:E26) -> 9783 | F27: =D27+E27 -> 28985 | G27: =SUM(G22:G26) -> 10607 | H27: 39592 | I27: =SUM(I22:I26) -> 9687 | J27: =SUM(J22:J26) -> 10051 | K27: 19738
A28: HQ/Eliminations | B28: 11 | C28: 12 | D28: 23 | E28: 10 | F28: 33 | G28: 1 | H28: 34 | I28: 10 | J28: 10 | K28: 20
A29: Branded Consumer Goods incl. HQ | B29: =SUM(B27:B28) -> 9508 | C29: =SUM(C27:C28) -> 9717 | D29: 19225 | E29: 9793 | F29: 29018 | G29: 10608 | H29: 39626 | I29: 9697 | J29: =SUM(J27:J28) -> 10061 | K29: 19758
A30: Hydro Power | B30: 193 | C30: 235 | D30: 428 | E30: 290 | F30: 718 | G30: 307 | H30: 1025 | I30: 230 | J30: 192 | K30: 422
A31: Financial Investments | B31: 15 | C31: 72 | D31: 87 | E31: 50 | F31: 137 | G31: 63 | H31: 200 | I31: 261 | J31: 311 | K31: 572
A32: Orkla Investments | B32: =SUM(B30:B31) -> 208 | C32: =SUM(C30:C31) -> 307 | D32: 515 | E32: 340 | F32: 855 | G32: 370 | H32: 1225 | I32: 491 | J32: =SUM(J30:J31) -> 503 | K32: 994
A33: Eliminations | B33: -5 | C33: -7 | D33: -12 | E33: -7 | F33: -19 | G33: 5 | H33: -14 | I33: -12 | J33: -22 | K33: -34
A34: Orkla Group | B34: =B29+B32+B33 -> 9711 | C34: =C29+C32+C33 -> 10017 | D34: 19728 | E34: 10126 | F34: 29854 | G34: 10983 | H34: 40837 | I34: 10176 | J34: =J29+J32+J33 -> 10542 | K34: 20718
A37: Operating profit - EBIT (adj.)
A38: NOK million | B38: Q1 2018 | C38: Q2 2018 | D38: YTD Q2 2018 | E38: Q3 2018 | F38: YTD Q3 2018 | G38: Q4 2018 | H38: YTD Q4 2018 | I38: Q1 2019 | J38: Q2 2019 | K38: YTD Q2 2019
A39: Orkla Foods | B39: 400 | C39: 439 | D39: =B39+C39 -> 839 | E39: 558 | F39: =D39+E39 -> 1397 | G39: 651 | H39: =F39+G39 -> 2048 | I39: 430 | J39: 496 | K39: =I39+J39 -> 926
A40: Orkla Confectionery & Snacks | B40: 187 | C40: 171 | D40: =B40+C40 -> 358 | E40: 278 | F40: =D40+E40 -> 636 | G40: 370 | H40: =F40+G40 -> 1006 | I40: 211 | J40: 191 | K40: 402
A41: Orkla Care | B41: 298 | C41: 264 | D41: 562 | E41: 314 | F41: 876 | G41: 208 | H41: 1084 | I41: 299 | J41: 242 | K41: 541
A42: Orkla Food Ingredients | B42: 57 | C42: 176 | D42: 233 | E42: 160 | F42: 393 | G42: 140 | H42: 533 | I42: 77 | J42: 195 | K42: 272
A43: Branded Consumer Goods | B43: =SUM(B39:B42) -> 942 | C43: =SUM(C39:C42) -> 1050 | D43: 1992 | E43: 1310 | F43: 3302 | G43: 1369 | H43: 4671 | I43: 1017 | J43: =SUM(J39:J42) -> 1124 | K43: 2141
A44: HQ | B44: -99 | C44: -42 | D44: -141 | E44: -51 | F44: -192 | G44: -92 | H44: -284 | I44: -92 | J44: -94 | K44: -186
A45: Branded Consumer Goods incl. HQ | B45: =SUM(B43:B44) -> 843 | C45: =SUM(C43:C44) -> 1008 | D45: 1851 | E45: 1259 | F45: 3110 | G45: 1277 | H45: 4387 | I45: 925 | J45: =SUM(J43:J44) -> 1030 | K45: 1955
A46: Hydro Power | B46: 59 | C46: 97 | D46: 156 | E46: 102 | F46: 258 | G46: 132 | H46: 390 | I46: 73 | J46: 69 | K46: 142
A47: Financial Investments | B47: -5 | C47: 14 | D47: 9 | E47: -8 | F47: 1 | G47: -1 | H47: 0 | I47: 22 | J47: 10 | K47: 32
A48: Orkla Investments | B48: =SUM(B46:B47) -> 54 | C48: =SUM(C46:C47) -> 111 | D48: 165 | E48: 94 | F48: 259 | G48: 131 | H48: 390 | I48: 95 | J48: =SUM(J46:J47) -> 79 | K48: 174
A49: Orkla Group | B49: =B45+B48 -> 897 | C49: =C45+C48 -> 1119 | D49: 2016 | E49: 1353 | F49: 3369 | G49: 1408 | H49: 4777 | I49: 1020 | J49: =J45+J48 -> 1109 | K49: 2129

Sheet Cash flow
B3: Cash Flow Statement Orkla Group
C5: 1.1-30.6 | D5: 1.1-30.6 | E5: 1.4-30.6 | F5: 1.4-30.6 | G5: 1.1-31.12
B6: Amounts in NOK million | C6: 2019 | D6: 2018 | E6: 2019 | F6: 2018 | G6: 2018
B8: Cash flow from Branded Consumer Goods incl. HQ
B9: EBIT (adj.) | C9: 1955 | D9: 1851 | E9: 1030 | F9: 1008 | G9: 4387
B10: Amortisation, depreciation and write-downs | C10: 731 | D10: 571 | E10: 364 | F10: 285 | G10: 1154
B11: Change in net working capital | C11: -351 | D11: -649 | E11: -534 | F11: -87 | G11: -190
B12: Net replacement expenditures | C12: -730 | D12: -683 | E12: -382 | F12: -302 | G12: -1393
B13: Cash flow from operations (adj.) | C13: =SUM(C9:C12) -> 1605 | D13: =SUM(D9:D12) -> 1090 | E13: =SUM(E9:E12) -> 478 | F13: =SUM(F9:F12) -> 904 | G13: 3958
B14: Cash flow effect from "Other income and expenses" and pensions | C14: -191 | D14: -208 | E14: -81 | F14: -91 | G14: -496
B15: Cash flow from operations, Branded Consumer Goods incl. HQ | C15: =SUM(C13:C14) -> 1414 | D15: =SUM(D13:D14) -> 882 | E15: =SUM(E13:E14) -> 397 | F15: =SUM(F13:F14) -> 813 | G15: 3462
B16: Cash flow from operations, Orkla Investments | C16: -8 | D16: 66 | E16: 37 | F16: -47 | G16: 26
B17: Taxes paid | C17: -775 | D17: -689 | E17: -322 | F17: -213 | G17: -904
B18: Dividends received and financial items | C18: -181 | D18: 4 | E18: -204 | F18: -31 | G18: -1
B19: Cash flow before capital transactions | C19: =SUM(C15:C18) -> 450 | D19: =SUM(D15:D18) -> 263 | E19: =SUM(E15:E18) -> -92 | F19: =SUM(F15:F18) -> 522 | G19: =SUM(G15:G18) -> 2583
B20: Dividends paid and net sale/purchase of Orkla shares | C20: -2582 | D20: -3355 | E20: -2578 | F20: -3351 | G20: -4063
B21: Cash flow before expansion | C21: =SUM(C19:C20) -> -2132 | D21: =SUM(D19:D20) -> -3092 | E21: =SUM(E19:E20) -> -2670 | F21: =SUM(F19:F20) -> -2829 | G21: =SUM(G19:G20) -> -1480
B22: Expansion investments | C22: -319 | D22: -245 | E22: -180 | F22: -210 | G22: -531
B23: Sold companies | C23: 47 | D23: 0 | E23: 37 | F23: 0 | G23: 47
B24: Acquired companies | C24: -2637 | D24: -769 | E24: -946 | F24: -289 | G24: -1080
B25: Net cash flow | C25: =SUM(C21:C24) -> -5041 | D25: =SUM(D21:D24) -> -4106 | E25: =SUM(E21:E24) -> -3759 | F25: =SUM(F21:F24) -> -3328 | G25: =SUM(G21:G24) -> -3044
B26: Currency translations net interest-bearing liabilities | C26: 164 | D26: 257 | E26: 6 | F26: 107 | G26: 21
B27: Change in net interest-bearing liabilities | C27: =-C25-C26 -> 4877 | D27: 3849 | E27: =-E25-E26 -> 3753 | F27: =-F25-F26 -> 3221 | G27: =-G25-G26 -> 3023
B28: Net interest-bearing liabilities 1.1.2019 - implementing IFRS 16 | C28: 1447
B29: Net interest-bearing liabilities | C29: =G29+C27+C28 -> 9361 | D29: 3863 | G29: 3037

Sheet Balance sheet
B3: Group Balance Sheet
C4: 2019-06-30 | D4: 2019-01-01 | E4: 2018-12-31
B5: Amounts in NOK million | C5: 2019 | D5: 2019 | E5: 2018
B7: Assets:
B8: Intangible assets | C8: 22278 | D8: 20610 | E8: 20610
B9: Property, plant and equipment | C9: 14511 | D9: 14043 | E9: 12760
B10: Investments in associates and other financial assets | C10: 4665 | D10: 4337 | E10: 4337
B11: Non-current assets | C11: =SUM(C8:C10) -> 41454 | D11: =SUM(D8:D10) -> 38990 | E11: =SUM(E8:E10) -> 37707
B12: Inventories | C12: 6027 | D12: 5875 | E12: 5875
B13: Inventory of development property | C13: 111 | D13: 132 | E13: 132
B14: Trade receivables | C14: 6310 | D14: 5990 | E14: 5990
B15: Other receivables | C15: 963 | D15: 814 | E15: 814
B16: Shares and financial assets | C16: 4 | D16: 13 | E16: 13
B17: Cash and cash equivalents | C17: 950 | D17: 1978 | E17: 1978
B18: Current assets | C18: =SUM(C12:C17) -> 14365 | D18: =SUM(D12:D17) -> 14802 | E18: =SUM(E12:E17) -> 14802
B19: Total assets | C19: =C11+C18 -> 55819 | D19: =D11+D18 -> 53792 | E19: =E11+E18 -> 52509
B20: Equity and debt:
B21: Paid-in equity | C21: 1972 | D21: 1971 | E21: 1971
B22: Earned equity | C22: 30062 | D22: 31546 | E22: 31658
B23: Non-controlling interests | C23: 472 | D23: 436 | E23: 451
B24: Equity | C24: =SUM(C21:C23) -> 32506 | D24: =SUM(D21:D23) -> 33953 | E24: =SUM(E21:E23) -> 34080
B25: Provisions and other non-current liabilities | C25: 4406 | D25: 4589 | E25: 4626
B26: Non-current interest-bearing liabilities | C26: 7876 | D26: 5916 | E26: 4775
B27: Current interest-bearing liabilities | C27: 2672 | D27: 761 | E27: 455
B28: Trade payables | C28: 5097 | D28: 4907 | E28: 4907
B29: Other current liabilities | C29: 3262 | D29: 3666 | E29: 3666
B30: Equity and liabilities | C30: =SUM(C24:C29) -> 55819 | D30: =SUM(D24:D29) -> 53792 | E30: =SUM(E24:E29) -> 52509
B32: Equity ratio (%): | C32: =C24/C30 -> 0.5823465128 | D32: =D24/D30 -> 0.6311905116 | E32: =E24/E30 -> 0.6490315946
B34: The balance sheet as of 1.1.2019 is restatet for IFRS 16 Leases
